[Event "*** Titled Tuesday Blitz"]
[Site "Chess.com"]
[Date "2020.05.05"]
[Round "4"]
[White "Yaacovn"]
[Black "Firegrizzly"]
[Result "1/2-1/2"]
[WhiteElo "2864"]
[BlackElo "2664"]
[TimeControl "180+1"]
[EndTime "10:40:11 PDT"]
[Termination "Game drawn by repetition"]

1. d4 {[%clk 0:03:00.9]} 1... Nf6 {[%clk 0:02:59.2]} 2. e3 {[%clk 0:03:01.1]}
2... g6 {[%clk 0:02:57.7]} 3. Nf3 {[%clk 0:03:01.5]} 3... Bg7 {[%clk 0:02:58.2]}
4. Be2 {[%clk 0:03:01.9]} 4... O-O {[%clk 0:02:58.7]} 5. O-O {[%clk 0:03:02.5]}
5... d6 {[%clk 0:02:58.6]} 6. b3 {[%clk 0:03:02.9]} 6... c5 {[%clk 0:02:58.9]}
7. Bb2 {[%clk 0:03:02.7]} 7... b6 {[%clk 0:02:52.7]} 8. c4 {[%clk 0:03:02.3]}
8... Nc6 {[%clk 0:02:44.2]} 9. d5 {[%clk 0:03:01.7]} 9... Na5 {[%clk 0:02:44.5]}
10. Nc3 {[%clk 0:03:01.4]} 10... Bf5 {[%clk 0:02:43.4]} 11. Qd2 {[%clk 0:02:59]}
11... a6 {[%clk 0:02:41.7]} 12. Rfe1 {[%clk 0:02:58.5]} 12... Re8 {[%clk
0:02:39.7]} 13. Bf1 {[%clk 0:02:57.3]} 13... Bg4 {[%clk 0:02:38.4]} 14. Be2
{[%clk 0:02:53.1]} 14... Bf5 {[%clk 0:02:36.7]} 15. h3 {[%clk 0:02:53.3]} 15...
Rb8 {[%clk 0:02:32.5]} 16. Bf1 {[%clk 0:02:52.2]} 16... e5 {[%clk 0:02:28.8]}
17. dxe6 {[%clk 0:02:49.2]} 17... Bxe6 {[%clk 0:02:28.1]} 18. Rad1 {[%clk
0:02:48.6]} 18... Nb7 {[%clk 0:02:24.5]} 19. Qc1 {[%clk 0:02:46.9]} 19... Bd7
{[%clk 0:02:20.6]} 20. Qa1 {[%clk 0:02:28.8]} 20... Bc6 {[%clk 0:02:18.7]} 21.
Be2 {[%clk 0:02:17.2]} 21... Qe7 {[%clk 0:02:16]} 22. Rd2 {[%clk 0:02:13.8]}
22... Ne4 {[%clk 0:02:14.2]} 23. Nxe4 {[%clk 0:02:11.4]} 23... Bxb2 {[%clk
0:02:14.8]} 24. Qxb2 {[%clk 0:02:09.4]} 24... Bxe4 {[%clk 0:02:14.8]} 25. Red1
{[%clk 0:02:08.5]} 25... Rbd8 {[%clk 0:02:13.9]} 26. Nh2 {[%clk 0:02:08]} 26...
h5 {[%clk 0:02:12.2]} 27. Bf3 {[%clk 0:02:07.9]} 27... b5 {[%clk 0:02:03.3]} 28.
Qc3 {[%clk 0:01:55.8]} 28... b4 {[%clk 0:01:59.6]} 29. Qb2 {[%clk 0:01:54.1]}
29... a5 {[%clk 0:01:59]} 30. Bxe4 {[%clk 0:01:49.7]} 30... Qxe4 {[%clk
0:01:57.4]} 31. Nf3 {[%clk 0:01:50.1]} 31... Qe7 {[%clk 0:01:55.7]} 32. Rd5
{[%clk 0:01:45.2]} 32... a4 {[%clk 0:01:52.9]} 33. g4 {[%clk 0:01:34.7]} 33...
hxg4 {[%clk 0:01:51.1]} 34. hxg4 {[%clk 0:01:35.6]} 34... Qe4 {[%clk 0:01:40.8]}
35. Nh2 {[%clk 0:01:24.9]} 35... a3 {[%clk 0:01:40.9]} 36. Qf6 {[%clk
0:01:21.1]} 36... Re6 {[%clk 0:01:36.7]} 37. Qf3 {[%clk 0:00:59]} 37... Kg7
{[%clk 0:01:30.4]} 38. Qxe4 {[%clk 0:00:51.9]} 38... Rxe4 {[%clk 0:01:31.3]} 39.
Kg2 {[%clk 0:00:52.3]} 39... Re6 {[%clk 0:01:29.2]} 40. Kg3 {[%clk 0:00:51]}
40... Rde8 {[%clk 0:01:27]} 41. Nf3 {[%clk 0:00:50.4]} 41... f6 {[%clk
0:01:24.5]} 42. R5d2 {[%clk 0:00:48.6]} 42... g5 {[%clk 0:01:21.8]} 43. Kg2
{[%clk 0:00:45.9]} 43... Rd8 {[%clk 0:01:19.7]} 44. Ng1 {[%clk 0:00:45.4]} 44...
Rd7 {[%clk 0:01:17.7]} 45. Ne2 {[%clk 0:00:44.7]} 45... Re4 {[%clk 0:01:12.1]}
46. Kf3 {[%clk 0:00:44.1]} 46... Re6 {[%clk 0:01:09.9]} 47. Ng3 {[%clk 0:00:44]}
47... Kg6 {[%clk 0:01:10.1]} 48. Nf5 {[%clk 0:00:32.5]} 48... Rh7 {[%clk
0:01:06.7]} 49. Kg2 {[%clk 0:00:32.7]} 49... Re4 {[%clk 0:01:05]} 50. f3 {[%clk
0:00:32.9]} 50... Re6 {[%clk 0:01:03.7]} 51. e4 {[%clk 0:00:33.2]} 51... Rh8
{[%clk 0:01:01.4]} 52. Kg3 {[%clk 0:00:32.9]} 52... Rh7 {[%clk 0:01:01.2]} 53.
Kg2 {[%clk 0:00:31.3]} 53... Rd7 {[%clk 0:00:59.5]} 54. Rh1 {[%clk 0:00:28]}
54... Rh7 {[%clk 0:00:58.8]} 55. Rhd1 {[%clk 0:00:27.3]} 1/2-1/2

[Event "*** Titled Tuesday Blitz"]
[Site "Chess.com"]
[Date "2020.05.05"]
[Round "4"]
[White "ilya261991"]
[Black "diskeleven"]
[Result "0-1"]
[WhiteElo "2533"]
[BlackElo "2355"]
[TimeControl "180+1"]
[EndTime "10:40:11 PDT"]
[Termination "diskeleven won by resignation"]

1. d4 {[%clk 0:03:00.9]} 1... Nf6 {[%clk 0:02:59.6]} 2. c4 {[%clk 0:02:59.8]}
2... e6 {[%clk 0:02:59.9]} 3. g3 {[%clk 0:02:59.4]} 3... c6 {[%clk 0:02:52.3]}
4. Bg2 {[%clk 0:02:59.1]} 4... d5 {[%clk 0:02:52.5]} 5. cxd5 {[%clk 0:02:58.3]}
5... exd5 {[%clk 0:02:51.8]} 6. Nc3 {[%clk 0:02:58.7]} 6... Be7 {[%clk
0:02:48.7]} 7. Nf3 {[%clk 0:02:58.9]} 7... O-O {[%clk 0:02:48.9]} 8. O-O {[%clk
0:02:59.3]} 8... Bf5 {[%clk 0:02:44.1]} 9. Ne5 {[%clk 0:02:57.7]} 9... Nbd7
{[%clk 0:02:44.3]} 10. Nd3 {[%clk 0:02:57.3]} 10... Re8 {[%clk 0:02:41.7]} 11.
a3 {[%clk 0:02:56.3]} 11... Bd6 {[%clk 0:02:35.8]} 12. f3 {[%clk 0:02:55.7]}
12... h6 {[%clk 0:02:24.6]} 13. Nf2 {[%clk 0:02:54.8]} 13... Be6 {[%clk
0:02:08.7]} 14. e4 {[%clk 0:02:54.2]} 14... dxe4 {[%clk 0:02:09]} 15. fxe4
{[%clk 0:02:55.1]} 15... Bc4 {[%clk 0:02:03.6]} 16. Re1 {[%clk 0:02:54.2]} 16...
Bf8 {[%clk 0:02:01.9]} 17. b3 {[%clk 0:02:52.6]} 17... Be6 {[%clk 0:01:55.4]}
18. Bf4 {[%clk 0:02:01.6]} 18... Nb6 {[%clk 0:01:54.6]} 19. Be5 {[%clk
0:01:51.6]} 19... Nfd7 {[%clk 0:01:52.8]} 20. Bf4 {[%clk 0:01:50.7]} 20... Nf6
{[%clk 0:01:50.4]} 21. h3 {[%clk 0:01:26.5]} 21... a5 {[%clk 0:01:36.7]} 22. Qc2
{[%clk 0:01:13.2]} 22... Qxd4 {[%clk 0:01:28.6]} 23. Rad1 {[%clk 0:01:07.9]}
23... Qc5 {[%clk 0:01:21.5]} 24. Be3 {[%clk 0:01:06.4]} 24... Qxa3 {[%clk
0:01:14.6]} 25. Bxb6 {[%clk 0:00:55.4]} 25... Bxb3 {[%clk 0:01:14.4]} 26. Qe2
{[%clk 0:00:38.7]} 26... Bxd1 {[%clk 0:01:07.9]} 27. Ncxd1 {[%clk 0:00:39.6]}
27... Nd5 {[%clk 0:01:02.8]} 28. Bd4 {[%clk 0:00:34.4]} 28... b5 {[%clk
0:01:02.1]} 29. Qg4 {[%clk 0:00:17.3]} 29... Qb4 {[%clk 0:00:57.2]} 30. exd5
{[%clk 0:00:07.8]} 30... Rxe1+ {[%clk 0:00:46.5]} 31. Kh2 {[%clk 0:00:08.7]}
31... h5 {[%clk 0:00:35.8]} 32. Qe4 {[%clk 0:00:04.6]} 32... Rxe4 {[%clk
0:00:34.6]} 0-1

[Event "*** Titled Tuesday Blitz"]
[Site "Chess.com"]
[Date "2020.05.05"]
[Round "4"]
[White "barbara25"]
[Black "BasilSmash"]
[Result "0-1"]
[WhiteElo "2224"]
[BlackElo "2430"]
[TimeControl "180+1"]
[EndTime "10:40:11 PDT"]
[Termination "BasilSmash won by resignation"]

1. e4 {[%clk 0:03:00.9]} 1... c6 {[%clk 0:02:58.8]} 2. d4 {[%clk 0:03:00.2]}
2... d5 {[%clk 0:02:59.7]} 3. f3 {[%clk 0:02:59.6]} 3... e6 {[%clk 0:02:59.1]}
4. Nc3 {[%clk 0:02:59]} 4... Bb4 {[%clk 0:02:58.3]} 5. a3 {[%clk 0:02:58.8]}
5... Bxc3+ {[%clk 0:02:57.3]} 6. bxc3 {[%clk 0:02:58.6]} 6... dxe4 {[%clk
0:02:57.4]} 7. Qe2 {[%clk 0:02:57.9]} 7... c5 {[%clk 0:02:52.7]} 8. Qxe4 {[%clk
0:02:56.5]} 8... Nf6 {[%clk 0:02:50.8]} 9. Qh4 {[%clk 0:02:56.5]} 9... cxd4
{[%clk 0:02:44.7]} 10. cxd4 {[%clk 0:02:55.4]} 10... Nc6 {[%clk 0:02:44.5]} 11.
c3 {[%clk 0:02:55]} 11... b6 {[%clk 0:02:43.2]} 12. Bd3 {[%clk 0:02:54.6]} 12...
Bb7 {[%clk 0:02:41]} 13. Ne2 {[%clk 0:02:54.4]} 13... h6 {[%clk 0:02:39.4]} 14.
O-O {[%clk 0:02:52.5]} 14... Rc8 {[%clk 0:02:36.3]} 15. a4 {[%clk 0:02:31.1]}
15... Na5 {[%clk 0:02:30.9]} 16. Qg3 {[%clk 0:02:29.1]} 16... g5 {[%clk
0:02:18.3]} 17. Ba3 {[%clk 0:02:24]} 17... Nc4 {[%clk 0:02:12.5]} 18. Bxc4
{[%clk 0:02:20.5]} 18... Rxc4 {[%clk 0:02:13.4]} 19. Qe5 {[%clk 0:02:16.1]}
19... Rg8 {[%clk 0:02:05.3]} 20. Bb2 {[%clk 0:02:12.5]} 20... Rg6 {[%clk
0:02:01.2]} 21. Ng3 {[%clk 0:02:02.1]} 21... Qc7 {[%clk 0:01:47.2]} 22. Qb5+
{[%clk 0:01:54.3]} 22... Qc6 {[%clk 0:01:42.2]} 23. Qxc6+ {[%clk 0:01:47.2]}
23... Bxc6 {[%clk 0:01:36.1]} 24. a5 {[%clk 0:01:47.4]} 24... b5 {[%clk
0:01:35.7]} 25. Rfe1 {[%clk 0:01:37.2]} 25... h5 {[%clk 0:01:32.1]} 26. Re5
{[%clk 0:01:31.4]} 26... Kd7 {[%clk 0:01:24]} 27. a6 {[%clk 0:01:24.2]} 27... h4
{[%clk 0:01:21.4]} 28. Ne4 {[%clk 0:01:20.9]} 28... Nxe4 {[%clk 0:01:16.2]} 29.
fxe4 {[%clk 0:01:20.8]} 29... f6 {[%clk 0:01:16.1]} 30. Rc5 {[%clk 0:01:16.6]}
30... Rxc5 {[%clk 0:01:16]} 31. dxc5 {[%clk 0:01:16.5]} 31... Bxe4 {[%clk
0:01:15.9]} 32. Rd1+ {[%clk 0:01:16]} 32... Bd5 {[%clk 0:01:15.7]} 33. Ba3
{[%clk 0:01:11.3]} 33... Kc6 {[%clk 0:01:15.2]} 34. Bb4 {[%clk 0:01:10.8]} 34...
f5 {[%clk 0:01:14.3]} 35. Kf2 {[%clk 0:01:10.3]} 35... e5 {[%clk 0:01:13.6]} 36.
Ba3 {[%clk 0:00:58.6]} 36... g4 {[%clk 0:01:13.2]} 37. Rd3 {[%clk 0:00:50.1]}
37... f4 {[%clk 0:01:10.2]} 38. Bb4 {[%clk 0:00:39.5]} 38... g3+ {[%clk
0:01:09.4]} 39. hxg3 {[%clk 0:00:39.3]} 39... hxg3+ {[%clk 0:01:07.9]} 40. Kf1
{[%clk 0:00:38.8]} 40... e4 {[%clk 0:01:03.1]} 41. Rd2 {[%clk 0:00:35.4]} 41...
f3 {[%clk 0:01:00.5]} 42. Ba3 {[%clk 0:00:26.9]} 42... Bc4+ {[%clk 0:00:58.3]}
0-1

[Event "*** Titled Tuesday Blitz"]
[Site "Chess.com"]
[Date "2020.05.05"]
[Round "4"]
[White "Sashadav97"]
[Black "AshotParvanyan"]
[Result "1-0"]
[WhiteElo "2754"]
[BlackElo "2500"]
[TimeControl "180+1"]
[EndTime "10:40:14 PDT"]
[Termination "Sashadav97 won on time"]

1. d4 {[%clk 0:03:00.9]} 1... Nf6 {[%clk 0:02:57.7]} 2. c4 {[%clk 0:03:01.1]}
2... c5 {[%clk 0:02:57.5]} 3. d5 {[%clk 0:03:01.1]} 3... b5 {[%clk 0:02:57.6]}
4. cxb5 {[%clk 0:02:57.1]} 4... a6 {[%clk 0:02:57.6]} 5. bxa6 {[%clk 0:02:57.3]}
5... g6 {[%clk 0:02:56.7]} 6. Nc3 {[%clk 0:02:57.4]} 6... Bg7 {[%clk 0:02:56.3]}
7. e4 {[%clk 0:02:57.7]} 7... d6 {[%clk 0:02:55.9]} 8. Nf3 {[%clk 0:02:49.3]}
8... O-O {[%clk 0:02:55]} 9. Be2 {[%clk 0:02:49.2]} 9... Qa5 {[%clk 0:02:54.8]}
10. O-O {[%clk 0:02:47.3]} 10... Bxa6 {[%clk 0:02:55]} 11. Bd2 {[%clk
0:02:45.5]} 11... Bxe2 {[%clk 0:02:46.3]} 12. Qxe2 {[%clk 0:02:46.4]} 12... Qa6
{[%clk 0:02:40.3]} 13. Qd1 {[%clk 0:02:23.3]} 13... Nbd7 {[%clk 0:02:30.8]} 14.
Qc2 {[%clk 0:02:19.5]} 14... Rfb8 {[%clk 0:01:55.7]} 15. h3 {[%clk 0:02:10.1]}
15... Ne8 {[%clk 0:01:34.5]} 16. Rab1 {[%clk 0:01:52]} 16... Nc7 {[%clk
0:01:30.4]} 17. Bg5 {[%clk 0:01:37.6]} 17... Kf8 {[%clk 0:01:23.8]} 18. Nd2
{[%clk 0:01:37.1]} 18... Nb5 {[%clk 0:00:47.4]} 19. Nxb5 {[%clk 0:01:32.4]}
19... Qxb5 {[%clk 0:00:48.3]} 20. b3 {[%clk 0:01:30.1]} 20... Ne5 {[%clk
0:00:27.6]} 21. Nc4 {[%clk 0:01:22.7]} 21... Nxc4 {[%clk 0:00:19.4]} 22. bxc4
{[%clk 0:01:23.6]} 22... Qa6 {[%clk 0:00:16.6]} 23. Rb3 {[%clk 0:01:17.7]} 23...
h6 {[%clk 0:00:15.4]} 24. Be3 {[%clk 0:01:14.8]} 24... Kg8 {[%clk 0:00:14.4]}
25. Rfb1 {[%clk 0:01:13.1]} 25... Rxb3 {[%clk 0:00:13.6]} 26. axb3 {[%clk
0:01:13.4]} 26... Rb8 {[%clk 0:00:11.6]} 27. Qd2 {[%clk 0:01:06.8]} 27... Qa3
{[%clk 0:00:10.7]} 28. Qc2 {[%clk 0:01:02.8]} 28... Qb4 {[%clk 0:00:08.7]} 29.
Bd2 {[%clk 0:01:01.3]} 29... Qa3 {[%clk 0:00:09]} 30. g3 {[%clk 0:00:57.7]}
30... h5 {[%clk 0:00:08.4]} 31. Kg2 {[%clk 0:00:56.5]} 31... Rb7 {[%clk
0:00:06.7]} 32. Bc3 {[%clk 0:00:52.1]} 32... Bxc3 {[%clk 0:00:06.2]} 33. Qxc3
{[%clk 0:00:53]} 33... Qa2 {[%clk 0:00:06.5]} 34. Rb2 {[%clk 0:00:52.7]} 34...
Qa1 {[%clk 0:00:06.5]} 35. Qd2 {[%clk 0:00:48.8]} 35... Rb4 {[%clk 0:00:06.4]}
36. Qc2 {[%clk 0:00:46.1]} 36... Qe1 {[%clk 0:00:05.5]} 37. Rb1 {[%clk 0:00:44]}
1-0

[Event "*** Titled Tuesday Blitz"]
[Site "Chess.com"]
[Date "2020.05.05"]
[Round "4"]
[White "ChainsOfFantasia"]
[Black "WoolworthsManly"]
[Result "1-0"]
[WhiteElo "2496"]
[BlackElo "2662"]
[TimeControl "180+1"]
[EndTime "10:40:14 PDT"]
[Termination "ChainsOfFantasia won by checkmate"]

1. c4 {[%clk 0:03:00.9]} 1... c6 {[%clk 0:02:59.7]} 2. Nf3 {[%clk 0:03:00.2]}
2... d5 {[%clk 0:03:00]} 3. d4 {[%clk 0:02:59.3]} 3... Nf6 {[%clk 0:02:59.9]} 4.
e3 {[%clk 0:02:59.6]} 4... a6 {[%clk 0:02:59.5]} 5. Nc3 {[%clk 0:03:00.4]} 5...
g6 {[%clk 0:02:59.7]} 6. a4 {[%clk 0:02:59.6]} 6... Bg7 {[%clk 0:03:00]} 7. Bd3
{[%clk 0:02:56.7]} 7... O-O {[%clk 0:03:00.4]} 8. O-O {[%clk 0:02:56.9]} 8... a5
{[%clk 0:03:00.7]} 9. Qe2 {[%clk 0:02:52.2]} 9... Na6 {[%clk 0:02:57.3]} 10. e4
{[%clk 0:02:51.8]} 10... dxe4 {[%clk 0:02:53.3]} 11. Nxe4 {[%clk 0:02:52.7]}
11... Nb4 {[%clk 0:02:52.5]} 12. Nxf6+ {[%clk 0:02:49.9]} 12... Bxf6 {[%clk
0:02:52.3]} 13. Be4 {[%clk 0:02:48.1]} 13... Qc7 {[%clk 0:02:40.1]} 14. Bh6
{[%clk 0:02:47.2]} 14... Rd8 {[%clk 0:02:39.6]} 15. Rad1 {[%clk 0:02:46.6]}
15... Bg4 {[%clk 0:02:16]} 16. d5 {[%clk 0:02:22.1]} 16... cxd5 {[%clk
0:02:10.8]} 17. cxd5 {[%clk 0:02:23]} 17... Rac8 {[%clk 0:02:03.8]} 18. h3
{[%clk 0:02:22.2]} 18... Bxf3 {[%clk 0:02:03.7]} 19. Bxf3 {[%clk 0:02:23.1]}
19... Qd6 {[%clk 0:01:56.7]} 20. Qb5 {[%clk 0:02:21.9]} 20... b6 {[%clk
0:01:34.2]} 21. Be3 {[%clk 0:02:13.3]} 21... Nc2 {[%clk 0:01:24]} 22. Qxb6
{[%clk 0:02:00.2]} 22... Nxe3 {[%clk 0:01:22.7]} 23. Qxe3 {[%clk 0:01:57.6]}
23... Bxb2 {[%clk 0:01:22.8]} 24. Rb1 {[%clk 0:01:54.1]} 24... Rb8 {[%clk
0:01:22.7]} 25. Rfd1 {[%clk 0:01:49.9]} 25... Rb4 {[%clk 0:01:21.3]} 26. Qa7
{[%clk 0:01:38.1]} 26... Bc3 {[%clk 0:01:02.8]} 27. Rbc1 {[%clk 0:01:34.2]}
27... Rb3 {[%clk 0:01:02.8]} 28. Rd3 {[%clk 0:01:28.5]} 28... Rc8 {[%clk
0:00:57.1]} 29. Qe3 {[%clk 0:01:28]} 29... Qb4 {[%clk 0:00:52.5]} 30. d6 {[%clk
0:01:21.9]} 30... exd6 {[%clk 0:00:51.9]} 31. Bd5 {[%clk 0:01:21.8]} 31... Rb1
{[%clk 0:00:50.8]} 32. Rxc3 {[%clk 0:00:57]} 32... Rxc3 {[%clk 0:00:37.9]} 33.
Qe8+ {[%clk 0:00:56.4]} 33... Kg7 {[%clk 0:00:37.8]} 34. Qxf7+ {[%clk
0:00:57.3]} 34... Kh6 {[%clk 0:00:35.4]} 35. Qf8+ {[%clk 0:00:57.4]} 35... Kg5
{[%clk 0:00:34.2]} 36. h4+ {[%clk 0:00:41.7]} 36... Kxh4 {[%clk 0:00:20.1]} 37.
Qh6+ {[%clk 0:00:31.6]} 37... Kg4 {[%clk 0:00:20.5]} 38. Be6# {[%clk 0:00:27.8]}
1-0

[Event "*** Titled Tuesday Blitz"]
[Site "Chess.com"]
[Date "2020.05.05"]
[Round "4"]
[White "okriak"]
[Black "spidernv"]
[Result "1-0"]
[WhiteElo "2808"]
[BlackElo "2459"]
[TimeControl "180+1"]
[EndTime "10:40:14 PDT"]
[Termination "okriak won by resignation"]

1. Nf3 {[%clk 0:03:00.9]} 1... c6 {[%clk 0:02:57.8]} 2. e4 {[%clk 0:03:00.2]}
2... d5 {[%clk 0:02:58.7]} 3. Nc3 {[%clk 0:03:00.5]} 3... dxe4 {[%clk
0:02:58.6]} 4. Nxe4 {[%clk 0:03:00.2]} 4... Nf6 {[%clk 0:02:59.5]} 5. Nxf6+
{[%clk 0:02:59]} 5... exf6 {[%clk 0:03:00.4]} 6. Bc4 {[%clk 0:02:57.1]} 6... Bd6
{[%clk 0:03:00.7]} 7. Qe2+ {[%clk 0:02:56.6]} 7... Be7 {[%clk 0:02:57.8]} 8. O-O
{[%clk 0:02:54.4]} 8... O-O {[%clk 0:02:57.3]} 9. d4 {[%clk 0:02:53.3]} 9... Bg4
{[%clk 0:02:55.8]} 10. c3 {[%clk 0:02:53]} 10... Nd7 {[%clk 0:02:55.6]} 11. Bf4
{[%clk 0:02:48.5]} 11... Nb6 {[%clk 0:02:55.2]} 12. Bb3 {[%clk 0:02:46.9]} 12...
Bd6 {[%clk 0:02:55.5]} 13. Bxd6 {[%clk 0:02:46.4]} 13... Qxd6 {[%clk 0:02:56.4]}
14. Qd3 {[%clk 0:02:42.8]} 14... Rfe8 {[%clk 0:02:51.8]} 15. Rfe1 {[%clk
0:02:41.1]} 15... Nd5 {[%clk 0:02:49.7]} 16. Bc2 {[%clk 0:02:38.7]} 16... g6
{[%clk 0:02:49.1]} 17. Rxe8+ {[%clk 0:02:35.5]} 17... Rxe8 {[%clk 0:02:48.3]}
18. Re1 {[%clk 0:02:36.1]} 18... Re7 {[%clk 0:02:44]} 19. Rxe7 {[%clk
0:02:23.2]} 19... Qxe7 {[%clk 0:02:43.7]} 20. h3 {[%clk 0:02:23.4]} 20... Nf4
{[%clk 0:02:39.6]} 21. Qe4 {[%clk 0:02:17.2]} 21... Qxe4 {[%clk 0:02:28]} 22.
Bxe4 {[%clk 0:02:15.9]} 22... Be6 {[%clk 0:02:25.1]} 23. a3 {[%clk 0:02:10.7]}
23... f5 {[%clk 0:02:21.7]} 24. Bc2 {[%clk 0:02:07.3]} 24... Bd5 {[%clk
0:02:21.5]} 25. Ne1 {[%clk 0:02:06.5]} 25... b5 {[%clk 0:02:14.2]} 26. h4 {[%clk
0:02:06.1]} 26... Kf8 {[%clk 0:02:09.3]} 27. g3 {[%clk 0:02:06.1]} 27... Ne6
{[%clk 0:02:04.8]} 28. Kf1 {[%clk 0:02:04.6]} 28... f4 {[%clk 0:02:02.1]} 29. g4
{[%clk 0:02:02.3]} 29... Ke7 {[%clk 0:01:49]} 30. f3 {[%clk 0:01:53.4]} 30... c5
{[%clk 0:01:46]} 31. dxc5 {[%clk 0:01:51]} 31... Nxc5 {[%clk 0:01:46.5]} 32. Kf2
{[%clk 0:01:50.1]} 32... Bc4 {[%clk 0:01:44]} 33. b4 {[%clk 0:01:40.7]} 33...
Ne6 {[%clk 0:01:42.4]} 34. a4 {[%clk 0:01:39.5]} 34... a6 {[%clk 0:01:38.9]} 35.
a5 {[%clk 0:01:37.6]} 35... Kd6 {[%clk 0:01:38.2]} 36. g5 {[%clk 0:01:30.7]}
36... Nc7 {[%clk 0:01:37.9]} 37. Be4 {[%clk 0:01:25.1]} 37... Ke5 {[%clk
0:01:37.1]} 38. Nd3+ {[%clk 0:01:10.3]} 38... Bxd3 {[%clk 0:01:36.3]} 39. Bxd3
{[%clk 0:01:10.9]} 39... Nd5 {[%clk 0:01:35.6]} 40. Be4 {[%clk 0:01:10.9]} 40...
Nxc3 {[%clk 0:01:20.1]} 41. Bb7 {[%clk 0:01:10.3]} 41... Kd4 {[%clk 0:01:13.8]}
42. Bxa6 {[%clk 0:01:10.4]} 42... Kc4 {[%clk 0:01:14.2]} 43. Bb7 {[%clk
0:01:08.1]} 43... Kxb4 {[%clk 0:01:14.1]} 44. a6 {[%clk 0:01:08.2]} 44... Na4
{[%clk 0:01:14.7]} 45. a7 {[%clk 0:01:00.7]} 45... Nb6 {[%clk 0:01:14.8]} 46.
a8=Q {[%clk 0:01:00.9]} 46... Nxa8 {[%clk 0:01:13.6]} 47. Bxa8 {[%clk
0:01:01.4]} 47... Kc3 {[%clk 0:01:14.5]} 48. Bd5 {[%clk 0:01:00.5]} 48... b4
{[%clk 0:01:14]} 49. Bxf7 {[%clk 0:00:50.9]} 49... b3 {[%clk 0:01:13.9]} 50. Ke2
{[%clk 0:00:50.9]} 50... b2 {[%clk 0:01:11.9]} 51. Ba2 {[%clk 0:00:50.6]} 51...
Kc2 {[%clk 0:01:12.2]} 52. Ke1 {[%clk 0:00:48.2]} 52... Kc1 {[%clk 0:01:10.6]}
53. Kf2 {[%clk 0:00:44]} 53... Kc2 {[%clk 0:01:08.9]} 54. Ke2 {[%clk 0:00:43.4]}
54... Kc1 {[%clk 0:00:55.4]} 55. Kd3 {[%clk 0:00:42.3]} 1-0

[Event "*** Titled Tuesday Blitz"]
[Site "Chess.com"]
[Date "2020.05.05"]
[Round "4"]
[White "ChesterF"]
[Black "FM_VS99"]
[Result "0-1"]
[WhiteElo "2505"]
[BlackElo "2312"]
[TimeControl "180+1"]
[EndTime "10:40:14 PDT"]
[Termination "FM_VS99 won by checkmate"]

1. d4 {[%clk 0:03:00.9]} 1... g6 {[%clk 0:03:00.1]} 2. c4 {[%clk 0:02:59.6]}
2... Bg7 {[%clk 0:03:00.3]} 3. Nc3 {[%clk 0:03:00.2]} 3... d6 {[%clk 0:03:01]}
4. e4 {[%clk 0:03:00.3]} 4... e5 {[%clk 0:03:00]} 5. Nf3 {[%clk 0:02:59.5]} 5...
Nc6 {[%clk 0:02:58.8]} 6. d5 {[%clk 0:02:56]} 6... Nd4 {[%clk 0:02:58.1]} 7. Be2
{[%clk 0:02:47]} 7... c5 {[%clk 0:02:53.8]} 8. dxc6 {[%clk 0:02:42]} 8... bxc6
{[%clk 0:02:47.5]} 9. O-O {[%clk 0:02:39]} 9... Ne7 {[%clk 0:02:45.8]} 10. Nxd4
{[%clk 0:02:36.6]} 10... exd4 {[%clk 0:02:44.5]} 11. Nb1 {[%clk 0:02:33.7]}
11... O-O {[%clk 0:02:42.3]} 12. Nd2 {[%clk 0:02:25.1]} 12... Rb8 {[%clk
0:02:27.1]} 13. Nb3 {[%clk 0:02:20.3]} 13... c5 {[%clk 0:02:24.1]} 14. Bf4
{[%clk 0:02:11.6]} 14... a5 {[%clk 0:02:11.7]} 15. Rb1 {[%clk 0:02:04.7]} 15...
Be6 {[%clk 0:02:05.4]} 16. Nc1 {[%clk 0:02:00.6]} 16... Nc6 {[%clk 0:02:04.7]}
17. b3 {[%clk 0:01:54.3]} 17... a4 {[%clk 0:01:58.2]} 18. Nd3 {[%clk 0:01:54.1]}
18... Ne5 {[%clk 0:01:57.4]} 19. Bxe5 {[%clk 0:01:51.8]} 19... Bxe5 {[%clk
0:01:55]} 20. f4 {[%clk 0:01:51.4]} 20... Bg7 {[%clk 0:01:54.7]} 21. f5 {[%clk
0:01:50.8]} 21... Bd7 {[%clk 0:01:54.8]} 22. Bg4 {[%clk 0:01:28.8]} 22... Re8
{[%clk 0:01:52.3]} 23. Qf3 {[%clk 0:01:27.4]} 23... Bc6 {[%clk 0:01:47.6]} 24.
Rfe1 {[%clk 0:01:25.4]} 24... h5 {[%clk 0:01:43.6]} 25. Bh3 {[%clk 0:01:23]}
25... Qh4 {[%clk 0:01:42]} 26. Nf4 {[%clk 0:01:01]} 26... Be5 {[%clk 0:01:22.3]}
27. fxg6 {[%clk 0:00:52.5]} 27... Qxf4 {[%clk 0:01:02.3]} 28. Qxh5 {[%clk
0:00:36.4]} 28... Qxh2+ {[%clk 0:00:55.6]} 29. Kf1 {[%clk 0:00:36.2]} 29... Qf4+
{[%clk 0:00:54.9]} 30. Kg1 {[%clk 0:00:35]} 30... fxg6 {[%clk 0:00:39.9]} 31.
Qxg6+ {[%clk 0:00:32.5]} 31... Kh8 {[%clk 0:00:39.8]} 32. Bf5 {[%clk 0:00:23]}
32... Qh2+ {[%clk 0:00:38.1]} 33. Kf1 {[%clk 0:00:21.5]} 33... Rg8 {[%clk
0:00:37.7]} 34. Ke2 {[%clk 0:00:14.8]} 34... Rxg6 {[%clk 0:00:36.2]} 35. Rh1
{[%clk 0:00:14.8]} 35... Rxg2+ {[%clk 0:00:35]} 36. Kd3 {[%clk 0:00:13]} 36...
Rd2# {[%clk 0:00:34.2]} 0-1